fUSD/lending_fUSD_20241108
["ID","MTS","AMOUNT","RATE_DAILY","PERIOD"]
[341659675,1731069877391,-250.0,0.00035,30]
[341659676,1731069877414,-250.0,0.00035,60]
[341659677,1731069877439,-1912.31467281,0.00035,100]
[341659678,1731069877463,-2312.19779621,0.00035,90]
[341659679,1731069877489,-500.0,0.00035616,30]
[341659680,1731069877513,-500.0,0.00035616,30]
[341659681,1731069877538,-500.0,0.00035616,30]
[341659682,1731069877565,-2653.23,0.00035616,120]
[341659683,1731069877596,-628.23,0.000359,31]
[341659684,1731069877622,-628.23,0.000359,31]
[341659685,1731069877649,-628.23,0.000359,31]
[341659686,1731069877674,-628.23,0.000359,31]
[341659687,1731069877700,-628.23,0.000359,31]
[341659688,1731069877726,-628.23,0.000359,31]
[341659689,1731069877756,-628.23,0.000359,31]
[341659690,1731069877783,-628.23,0.000359,31]
[341659691,1731069877813,-628.23,0.000359,31]
[341659692,1731069877840,-628.23,0.000359,31]
[341659693,1731069877866,-628.23,0.000359,31]
[341659694,1731069877892,-628.23,0.000359,31]
[341659695,1731069877918,-628.23,0.000359,31]
[341659696,1731069877944,-628.23,0.000359,31]
[341659697,1731069877969,-628.23,0.000359,31]
[341659698,1731069877996,-628.23,0.000359,31]
[341659699,1731069878023,-628.23,0.000359,31]
[341659700,1731069878051,-628.23,0.000359,31]
[341659701,1731069878077,-628.23,0.000359,31]
[341659702,1731069878103,-628.23,0.000359,31]
[341659703,1731069878129,-628.23,0.000359,31]
[341659704,1731069878154,-628.23,0.000359,31]
[341659705,1731069878181,-628.23,0.000359,31]
[341659706,1731069878206,-628.23,0.000359,31]
[341659707,1731069878231,-1620.8634398,0.00036,120]
[341659708,1731069878255,-250.0,0.00036,30]
[341659709,1731069878280,-158.88,0.00036066,120]
[341659710,1731069878477,-2336.93,0.000365,30]
[341659711,1731069878522,-200.0,0.00036543,120]
[341659712,1731069878549,-2653.23,0.00036986,120]
[341659713,1731069878573,-29414.0,0.00037,120]
[341659714,1731069878599,-1050.0,0.00037,120]
[341659715,1731069878623,-1371.60269769,0.0003729,120]
[341659716,1731069878649,-320.0,0.00037969,120]
[341659717,1731069878673,-950.0,0.00038,120]
[341659718,1731069878698,-250.0,0.00038,30]
[341659719,1731069878726,-628.23,0.000382,31]
[341659720,1731069878758,-628.23,0.000382,31]
[341659721,1731069878785,-628.23,0.000382,31]
[341659722,1731069878813,-628.23,0.000382,31]
[341659723,1731069878839,-628.23,0.000382,31]
[341659724,1731069878867,-628.23,0.000382,31]
[341659725,1731069878894,-628.23,0.000382,31]
[341659726,1731069878922,-628.23,0.000382,31]
[341659727,1731069878949,-628.23,0.000382,31]
[341659728,1731069878976,-628.23,0.000382,31]
[341659729,1731069879002,-628.23,0.000382,31]
[341659730,1731069879028,-628.23,0.000382,31]
[341659731,1731069879055,-628.23,0.000382,31]
[341659732,1731069879081,-628.23,0.000382,31]
[341659733,1731069879107,-628.23,0.000382,31]
[341659734,1731069879133,-628.23,0.000382,31]
[341659735,1731069879160,-628.23,0.000382,31]
[341659736,1731069879187,-628.23,0.000382,31]
[341659737,1731069879214,-628.23,0.000382,31]
[341659738,1731069879242,-628.23,0.000382,31]
[341659739,1731069879268,-628.23,0.000382,31]
[341659740,1731069879294,-628.23,0.000382,31]
[341659741,1731069879319,-628.23,0.000382,31]
[341659742,1731069879345,-628.23,0.000382,31]
[341659743,1731069879376,-2653.23,0.00038356,120]
[341659744,1731069879401,-968.23051403,0.000385,120]
[341659745,1731069879427,-996.36,0.0003863,31]
[341659746,1731069879453,-234.17,0.0003898,30]
[341659747,1731069879478,-150.5,0.0003899,120]
[341659748,1731069879505,-150.5,0.0003899,30]
[341659749,1731069879530,-2070.1410143,0.00039,120]
[341659750,1731069879556,-606.44065524,0.00039,120]
[341659751,1731069879581,-256.75634574,0.00039,120]
[341659752,1731069879607,-850.0,0.00039,120]
[341659753,1731069879632,-200.0,0.0003901,120]
[341659754,1731069879659,-158.88,0.00039573,120]
[341659755,1731069879685,-2653.23,0.00039726,120]
[341659756,1731069879711,-277.52337258,0.0003999,120]
[341659757,1731069879744,-250.0,0.0004,60]
[341659758,1731069879770,-250.0,0.0004,60]
[341659759,1731069879794,-591.80747204,0.0004,120]
[341659760,1731069879821,-377.43032185,0.0004,30]
[341659761,1731069879846,-301.22686313,0.0004,30]
[341659762,1731069879871,-176.08053954,0.0004,120]
[341659763,1731069879897,-152.33955213,0.0004,120]
[341659764,1731069879923,-799.95289983,0.0004,120]
[341659765,1731069879947,-191.57162166,0.0004,30]
[341659766,1731069879971,-954.67492881,0.0004,30]
[341659767,1731069879995,-1063.44799109,0.0004,32]
[341659768,1731069880020,-2200.0,0.0004,60]
[341659769,1731069880045,-750.0,0.0004,120]
[341659770,1731069880070,-250.0,0.0004,30]
[341659771,1731069880096,-996.36,0.00040185,43]
[341659772,1731069880124,-628.23,0.000406,31]
[341659773,1731069880151,-628.23,0.000406,31]
[341659774,1731069880177,-628.23,0.000406,31]
[341659775,1731069880204,-628.23,0.000406,31]
[341659776,1731069880230,-628.23,0.000406,31]
[341659777,1731069880257,-628.23,0.000406,31]
[341659778,1731069880282,-628.23,0.000406,31]
[341659779,1731069880308,-628.23,0.000406,31]
[341659780,1731069880334,-628.23,0.000406,31]
[341659781,1731069880363,-628.23,0.000406,31]
[341659782,1731069880392,-628.23,0.000406,31]
[341659783,1731069880418,-628.23,0.000406,31]
[341659784,1731069880446,-628.23,0.000406,31]
[341659785,1731069880474,-628.23,0.000406,31]
[341659786,1731069880502,-628.23,0.000406,31]
[341659787,1731069880530,-628.23,0.000406,31]
[341659788,1731069880557,-628.23,0.000406,31]
[341659789,1731069880584,-628.23,0.000406,31]
[341659790,1731069880612,-628.23,0.000406,31]
[341659791,1731069880639,-628.23,0.000406,31]
[341659792,1731069880665,-628.23,0.000406,31]
[341659793,1731069880692,-628.23,0.000406,31]
[341659794,1731069880720,-628.23,0.000406,31]
[341659795,1731069880750,-628.23,0.000406,31]
[341659796,1731069880776,-200.0,0.0004061,120]
[341659797,1731069880803,-452.999992,0.00041,120]
[341659798,1731069880828,-3000.0,0.00041,63]
[341659799,1731069880853,-500.0,0.00041095,60]
[341659800,1731069880877,-500.0,0.00041095,60]
[341659801,1731069880902,-500.0,0.00041095,60]
[341659802,1731069880927,-500.0,0.00041095,60]
[341659803,1731069880952,-500.0,0.00041095,60]
[341659804,1731069880977,-500.0,0.00041095,60]
[341659805,1731069881002,-500.0,0.00041095,60]
[341659806,1731069881027,-500.0,0.00041095,60]
[341659807,1731069881051,-500.0,0.00041095,60]
[341659808,1731069881076,-500.0,0.00041095,60]
[341659809,1731069881102,-500.0,0.00041095,60]
[341659810,1731069881297,-500.0,0.00041095,60]
[341659811,1731069881324,-500.0,0.00041095,60]
[341659812,1731069881356,-2653.23,0.00041095,120]
[341659813,1731069881385,-250.0,0.000412,60]
[341659814,1731069881410,-649.44924685,0.00041394,60]
[341659815,1731069881436,-996.36,0.0004174,55]
[341659816,1731069881464,-905.6834,0.00041888,30]
[341659817,1731069881490,-150.0,0.0004194,30]
[341659818,1731069881515,-150.0,0.0004194,30]
[341659819,1731069881540,-150.0,0.0004194,30]
[341659820,1731069881565,-294.55233563,0.0004194,30]
[341659821,1731069881591,-154.72208366,0.0004194,30]
[341659822,1731069881618,-250.0,0.00042,120]
[341659823,1731069881643,-441.62490494,0.00042,120]
[341659824,1731069881669,-650.0,0.00042,120]
[341659825,1731069881694,-250.0,0.00042,30]
[341659826,1731069881718,-641.10514293,0.000421,120]
[341659827,1731069881746,-150.0,0.00042364,30]
[341659828,1731069881772,-2674.04391087,0.000424,30]
[341659829,1731069881826,-2653.23,0.00042465,120]
[341659830,1731069881851,-547.45587117,0.0004248,115]
[341659831,1731069881876,-1301.09678112,0.000425,120]
[341659832,1731069881903,-7059.4022775,0.00042598,31]
[341659833,1731069881930,-4079.0,0.000427,117]
[341659834,1731069881956,-150.0,0.00042787,30]
[341659835,1731069881981,-1504.87195645,0.00042798,120]
[341659836,1731069882005,-342.06685428,0.000429,120]
[341659837,1731069882030,-1032.30474747,0.000429,60]
[341659838,1731069882055,-10680.54171405,0.00042997,120]
[341659839,1731069882079,-250.39884845,0.00043,120]
[341659840,1731069882103,-874.54905358,0.00043,120]
[341659841,1731069882127,-168.44699362,0.00043,120]
[341659842,1731069882155,-628.23,0.00043,33]
[341659843,1731069882181,-628.23,0.00043,33]
[341659844,1731069882206,-628.23,0.00043,33]
[341659845,1731069882233,-628.23,0.00043,33]
[341659846,1731069882260,-628.23,0.00043,33]
[341659847,1731069882287,-628.23,0.00043,33]
[341659848,1731069882313,-628.23,0.00043,33]
[341659849,1731069882341,-628.23,0.00043,33]
[341659850,1731069882369,-628.23,0.00043,33]
[341659851,1731069882396,-628.23,0.00043,33]
[341659852,1731069882423,-628.23,0.00043,33]
[341659853,1731069882450,-628.23,0.00043,33]
[341659854,1731069882477,-628.23,0.00043,33]
[341659855,1731069882504,-628.23,0.00043,33]
[341659856,1731069882530,-628.23,0.00043,33]
[341659857,1731069882557,-628.23,0.00043,33]
[341659858,1731069882582,-500.0,0.00043013,120]
[341659859,1731069882608,-500.0,0.00043013,120]
[341659860,1731069882633,-500.0,0.00043013,120]
[341659861,1731069882659,-500.0,0.00043013,120]
[341659862,1731069882684,-500.0,0.00043013,120]
[341659863,1731069882710,-500.0,0.00043013,120]
[341659864,1731069882737,-500.0,0.00043013,120]
[341659865,1731069882762,-500.0,0.00043013,120]
[341659866,1731069882789,-500.0,0.00043013,120]
[341659867,1731069882813,-500.0,0.00043013,120]
[341659868,1731069882839,-500.0,0.00043013,120]
[341659869,1731069882865,-264.00433334,0.00043013,120]
[341659870,1731069882891,-518.18419569,0.00043014,30]
[341659871,1731069882918,-158.88,0.0004308,120]
[341659872,1731069882944,-150.0,0.00043105,30]
[341659873,1731069882970,-150.0,0.00043211,30]
[341659874,1731069882996,-1614.245043,0.00043295,67]
[341659875,1731069883024,-150.0,0.00043635,30]
[341659876,1731069883051,-2438.13881493,0.000437,120]
[341659877,1731069883077,-470.30191271,0.000438,30]
[341659878,1731069883104,-2653.23,0.00043835,120]
[341659879,1731069883131,-2000.0,0.00043835,120]
[341659880,1731069883157,-4000.0,0.00043836,30]
[341659881,1731069883183,-205.17836016,0.000439,120]
[341659882,1731069883208,-1834.90499354,0.00044,120]
[341659883,1731069883233,-11182.35670296,0.00044,30]
[341659884,1731069883259,-10051.69137897,0.00044,120]
[341659885,1731069883284,-3000.0,0.00044,90]
[341659886,1731069883309,-550.0,0.00044,120]
[341659887,1731069883335,-250.0,0.00044,30]
[341659888,1731069883364,-505.565526,0.00044,57]
[341659889,1731069883392,-150.0,0.00044058,30]
[341659890,1731069883418,-150.0,0.0004427,30]
[341659891,1731069883444,-150.0,0.0004427,30]
[341659892,1731069883469,-2000.0,0.00044383,120]
[341659893,1731069883494,-1016.0,0.0004446,30]
[341659894,1731069883520,-151.094,0.0004446,120]
[341659895,1731069883546,-150.0,0.00044482,30]
[341659896,1731069883570,-10680.54171405,0.00044497,120]
[341659897,1731069883595,-1880.38478136,0.000445,120]
[341659898,1731069883621,-351.11,0.00044519,120]
[341659899,1731069883646,-2053.03678155,0.000448,120]
[341659900,1731069883671,-152.78551054,0.000448,120]
[341659901,1731069883696,-1139.41131592,0.0004489,120]
[341659902,1731069883720,-776.15461801,0.000449,30]
[341659903,1731069883749,-150.0,0.00044905,30]
[341659904,1731069883775,-2000.0,0.00044931,120]
[341659905,1731069883800,-4485.8,0.00044992,117]
[341659906,1731069883828,-1008.4,0.00045,120]
[341659907,1731069883853,-289.25056518,0.00045,120]
[341659908,1731069883877,-3017.90664053,0.00045,120]
[341659909,1731069883902,-243.81863429,0.00045,120]
[341659910,1731069883928,-195.63517826,0.00045,120]
[341659911,1731069883952,-166.97484635,0.00045,120]
[341659912,1731069883977,-175.938953,0.00045,120]
[341659913,1731069884169,-5219.0,0.00045,120]
[341659914,1731069884195,-2653.23,0.00045205,120]
[341659915,1731069884221,-2226.45060442,0.000453,120]
[341659916,1731069884245,-150.0,0.00045329,30]
[341659917,1731069884271,-151.382,0.000454,30]
[341659918,1731069884297,-150.0,0.00045435,30]
[341659919,1731069884323,-2000.0,0.00045479,120]
[341659920,1731069884350,-701.2,0.00045497,30]
[341659921,1731069884378,-300.0,0.00045497,30]
[341659922,1731069884401,-300.0,0.00045497,30]
[341659923,1731069884429,-300.0,0.00045497,30]
[341659924,1731069884455,-865.62,0.00045497,30]
[341659925,1731069884480,-300.0,0.00045497,30]
[341659926,1731069884504,-300.0,0.00045497,30]
[341659927,1731069884530,-432.81,0.00045497,30]
[341659928,1731069884554,-150.0,0.00045497,30]
[341659929,1731069884578,-150.0,0.00045497,30]
[341659930,1731069884603,-150.0,0.00045497,30]
[341659931,1731069884627,-150.0,0.00045497,30]
[341659932,1731069884652,-150.0,0.00045497,30]
[341659933,1731069884676,-432.26,0.00045497,30]
[341659934,1731069884702,-301.78,0.00045497,30]
[341659935,1731069884727,-150.0,0.00045497,30]
[341659936,1731069884756,-151.059,0.0004563,120]
[341659937,1731069884781,-1918.66401402,0.000457,120]
[341659938,1731069884806,-150.0,0.00045753,30]
[341659939,1731069884831,-10680.54171405,0.00045997,120]
[341659940,1731069884856,-2336.93,0.00046,30]
[341659941,1731069884881,-3497.71,0.00046,60]
[341659942,1731069884905,-3273.83621704,0.00046,120]
[341659943,1731069884930,-80000.0,0.00046,30]
[341659944,1731069884954,-306159.98935574,0.00046,30]
[341659945,1731069884977,-220.0,0.00046,120]
[341659946,1731069885003,-3208.41933355,0.00046,120]
[341659947,1731069885027,-500.0,0.00046,120]
[341659948,1731069885050,-250.0,0.00046,30]
[341659949,1731069885075,-2000.0,0.00046027,120]
[341659950,1731069885099,-150.0,0.00046176,30]
[341659951,1731069885125,-196.0,0.000463,34]
[341659952,1731069885149,-201.3,0.000463,40]
[341659953,1731069885174,-201.3,0.000463,40]
[341659954,1731069885198,-398.0,0.000463,34]
[341659955,1731069885223,-3987.0,0.000463,34]
[341659956,1731069885249,-1490.0,0.000463,34]
[341659957,1731069885274,-318535.81298159,0.000463,120]
[341659958,1731069885299,-150.0,0.00046316,30]
[341659959,1731069885324,-1565.44724064,0.000465,120]
[341659960,1731069885353,-2325.4126278,0.00046562,120]
[341659961,1731069885381,-2653.23,0.00046575,120]
[341659962,1731069885406,-2000.0,0.00046575,120]
[341659963,1731069885433,-158.88,0.00046587,120]
[341659964,1731069885459,-196.0,0.000466,34]
[341659965,1731069885485,-200.0,0.000466,34]
[341659966,1731069885511,-398.0,0.000466,34]
[341659967,1731069885537,-398.0,0.000466,34]
[341659968,1731069885562,-797.0,0.000466,34]
[341659969,1731069885587,-150.0,0.000466,103]
[341659970,1731069885612,-150.0,0.000466,103]
[341659971,1731069885638,-150.00000028,0.000466,30]
[341659972,1731069885663,-150.0,0.000466,30]
[341659973,1731069885688,-150.0,0.000466,30]
[341659974,1731069885714,-263652.49154739,0.000468,120]
[341659975,1731069885741,-2131.99,0.000468,30]
[341659976,1731069885767,-1016.0,0.000468,30]
[341659977,1731069885791,-500.0,0.000468,120]
[341659978,1731069885816,-2544.64913532,0.00046898,120]
[341659979,1731069885841,-670.62520931,0.00046898,90]
[341659980,1731069885866,-231.04388248,0.00046898,90]
[341659981,1731069885890,-1000.0,0.000469,30]
[341659982,1731069885914,-3000.0,0.00046986,120]
[341659983,1731069885938,-413.06153306,0.00046986,90]
[341659984,1731069885962,-1000.0,0.00046999,120]
[341659985,1731069885988,-50000.0,0.00047,47]
[341659986,1731069886012,-2229.48451134,0.00047,120]
[341659987,1731069886038,-2373.12890665,0.00047,120]
[341659988,1731069886063,-2241.0,0.00047,60]
[341659989,1731069886086,-5962.13885698,0.00047,45]
[341659990,1731069886111,-5000.0,0.00047,120]
[341659991,1731069886135,-5000.0,0.00047,30]
[341659992,1731069886160,-20000.0,0.00047,30]
[341659993,1731069886184,-10798.99151017,0.00047,100]
[341659994,1731069886209,-156137.55570047,0.00047,120]
[341659995,1731069886234,-64465.15528059,0.00047,30]
[341659996,1731069886259,-150.0,0.0004704,120]
[341659997,1731069886284,-2000.0,0.00047123,120]
[341659998,1731069886308,-1000.0,0.000472,30]
[341659999,1731069886332,-177.63159,0.000472,120]
[341660000,1731069886359,-150.0,0.000472,120]
[341660001,1731069886385,-150.0,0.000472,120]
[341660002,1731069886410,-150.0,0.000472,120]
[341660003,1731069886435,-8211.42080868,0.000472,30]
[341660004,1731069886459,-4893.59,0.00047284,117]
[341660005,1731069886483,-327.63159,0.000473,120]
[341660006,1731069886508,-227.20539,0.000473,120]
[341660007,1731069886532,-150.0,0.000473,120]
[341660008,1731069886556,-150.0,0.000473,120]
[341660009,1731069886581,-5000.0,0.000474,120]
[341660010,1731069886606,-500000.0,0.000474,120]
[341660011,1731069886632,-427.75,0.00047401,30]
[341660012,1731069886658,-427.75,0.00047401,30]
[341660013,1731069886683,-427.75,0.00047401,30]
[341660014,1731069886710,-1129.92,0.00047401,30]
[341660015,1731069886737,-427.75,0.00047401,30]
[341660016,1731069886988,-849.42,0.00047401,30]
[341660017,1731069887016,-762.09,0.00047427,30]
[341660018,1731069887041,-427.75,0.00047427,30]
[341660019,1731069887067,-10680.54171405,0.00047497,120]
[341660020,1731069887091,-1000.0,0.00047499,120]
[341660021,1731069887116,-1000.0,0.000475,30]
[341660022,1731069887141,-200.0,0.000475,120]
[341660023,1731069887167,-500.0,0.00047502,120]
[341660024,1731069887192,-248.24,0.000476,115]
[341660025,1731069887218,-150.0,0.000476,115]
[341660026,1731069887243,-2000.0,0.00047671,120]
[341660027,1731069887270,-2666.49236448,0.000477,120]
[341660028,1731069887296,-150.0,0.00047757,120]
[341660029,1731069887321,-1000.0,0.000478,30]
[341660030,1731069887346,-2200.0,0.000478,120]
[341660031,1731069887374,-1000.0,0.000479,30]
[341660032,1731069887398,-5003.25112,0.00047904,30]
[341660033,1731069887423,-272.04,0.00047933,30]
[341660034,1731069887447,-150.0,0.00047933,30]
[341660035,1731069887471,-150.0,0.00047933,30]
[341660036,1731069887496,-1539.3,0.00047945,120]
[341660037,1731069887521,-1539.3,0.00047945,120]
[341660038,1731069887546,-1539.3,0.00047945,120]
[341660039,1731069887569,-1539.3,0.00047945,120]
[341660040,1731069887594,-1539.3,0.00047945,120]
[341660041,1731069887619,-1539.3,0.00047945,120]
[341660042,1731069887644,-1539.3,0.00047945,120]
[341660043,1731069887668,-1539.3,0.00047945,120]
[341660044,1731069887694,-1539.3,0.00047945,120]
[341660045,1731069887719,-1539.3,0.00047945,120]
[341660046,1731069887749,-1539.3,0.00047945,120]
[341660047,1731069887775,-1539.3,0.00047945,120]
[341660048,1731069887800,-1539.3,0.00047945,120]
[341660049,1731069887827,-1539.3,0.00047945,120]
[341660050,1731069887852,-1539.3,0.00047945,120]
[341660051,1731069887880,-1539.3,0.00047945,120]
[341660052,1731069887906,-1539.3,0.00047945,120]
[341660053,1731069887931,-1539.3,0.00047945,120]
[341660054,1731069887955,-1539.3,0.00047945,120]
[341660055,1731069887980,-1539.40298976,0.00047945,120]
[341660056,1731069888005,-500.0,0.00047945,120]
[341660057,1731069888029,-157.20764215,0.00047945,120]
[341660058,1731069888054,-500.0,0.00047945,120]
[341660059,1731069888078,-500.0,0.00047945,120]
[341660060,1731069888104,-543.63,0.00047945,120]
[341660061,1731069888129,-500.0,0.00047945,120]
[341660062,1731069888153,-598.93,0.00047945,120]
[341660063,1731069888179,-2653.23,0.00047945,120]
[341660064,1731069888204,-150.0,0.00047949,30]
[341660065,1731069888228,-362.0,0.00047949,30]
[341660066,1731069888252,-150.0,0.00047949,30]
[341660067,1731069888276,-432.81,0.00047949,30]
[341660068,1731069888301,-362.0,0.00047949,30]
[341660069,1731069888326,-362.0,0.00047949,30]
[341660070,1731069888352,-150.0,0.00047949,30]
[341660071,1731069888380,-362.0,0.00047949,30]
[341660072,1731069888405,-362.0,0.00047949,30]
[341660073,1731069888429,-362.0,0.00047949,30]
[341660074,1731069888456,-948.33,0.00047975,30]
[341660075,1731069888481,-150.0,0.00047975,30]
[341660076,1731069888506,-1000.0,0.00047999,120]
[341660077,1731069888533,-50000.0,0.00048,48]
[341660078,1731069888560,-162.69272091,0.00048,120]
[341660079,1731069888585,-500.0,0.00048,120]
[341660080,1731069888610,-1000.0,0.00048,120]
[341660081,1731069888635,-1000.0,0.00048,120]
[341660082,1731069888660,-1000.0,0.00048,120]
[341660083,1731069888685,-1000.0,0.00048,120]
[341660084,1731069888712,-1000.0,0.00048,120]
[341660085,1731069888740,-610.0,0.00048,120]
[341660086,1731069888766,-20062.0,0.00048,30]
[341660087,1731069888793,-2000.0,0.00048,90]
[341660088,1731069888820,-9167.05645562,0.00048,120]
[341660089,1731069888844,-14307.68109562,0.00048,30]
[341660090,1731069888870,-8743.38,0.00048,30]
[341660091,1731069888894,-5453.35641373,0.00048,120]
[341660092,1731069888919,-404.85557087,0.00048,120]
[341660093,1731069888942,-2546.6374454,0.00048,30]
[341660094,1731069888967,-6906.44213422,0.00048,120]
[341660095,1731069888992,-2296.80951938,0.00048,120]
[341660096,1731069889016,-1298.53395159,0.00048,120]
[341660097,1731069889042,-250.0,0.00048,30]
[341660098,1731069889068,-150.0,0.00048028,120]
[341660099,1731069889092,-150.0,0.00048094,120]
[341660100,1731069889118,-1000.0,0.000481,30]
[341660101,1731069889143,-156.1592787,0.000482,120]
[341660102,1731069889168,-276.14137637,0.00048215,120]
[341660103,1731069889193,-2000.0,0.00048219,120]
[341660104,1731069889219,-1000.0,0.000484,30]
[341660105,1731069889243,-1000.0,0.000484,120]
[341660106,1731069889268,-150.0,0.00048451,120]
[341660107,1731069890712,5000.0,0.00046,120]
[341660108,1731069891091,150.0,0.00040185,43]
[341660109,1731069891124,500.0,0.00040185,43]
[341660110,1731069891272,500.0,0.000406,31]
[341660111,1731069891326,150.0,0.000406,31]
[341660112,1731069891407,500.0,0.0004061,120]
[341660113,1731069891444,150.0,0.0004061,120]
[341660114,1731069891501,500.0,0.00041,120]
[341660115,1731069891533,150.0,0.00041,120]
[341660116,1731069891707,500.0,0.00041095,60]
[341660117,1731069891773,150.0,0.00041095,60]
[341660118,1731069892150,500.0,0.000412,60]
[341660119,1731069892181,150.0,0.000412,60]
[341660120,1731069892372,150.0,0.00041394,60]
[341660121,1731069892505,500.0,0.00041394,60]
[341660122,1731069892553,150.0,0.0004174,55]
[341660123,1731069892587,500.0,0.0004174,55]
[341660124,1731069892631,150.0,0.00041888,30]
[341660125,1731069892791,500.0,0.00041888,30]
[341660126,1731069893036,150.0,0.0004194,30]
[341660127,1731069893087,500.0,0.0004194,30]
[341660128,1731069893264,150.0,0.00042,120]
[341660129,1731069893365,500.0,0.00042,120]
[341660130,1731069893524,150.0,0.000421,120]
[341660131,1731069893558,500.0,0.000421,120]
[341660132,1731069893851,500.0,0.00042364,30]
[341660133,1731069894043,500.0,0.000424,30]
[341660134,1731069894087,150.0,0.00042364,30]
[341660135,1731069894297,500.0,0.00042465,120]
[341660136,1731069894373,500.0,0.0004248,115]
[341660137,1731069894517,500.0,0.000425,120]
[341660138,1731069894869,500.0,0.00042598,31]
[341660139,1731069894966,500.0,0.000427,117]
[341660140,1731069895095,500.0,0.00042787,30]
[341660141,1731069895236,500.0,0.00042798,120]
[341660142,1731069895266,500.0,0.00046,120]
[341660143,1731069895421,500.0,0.000429,120]
[341660144,1731069895455,500.0,0.000406,31]
[341660145,1731069895552,500.0,0.0004061,120]
[341660146,1731069895623,500.0,0.00041,120]
[341660147,1731069895740,500.0,0.00043,120]
[341660148,1731069895963,500.0,0.00043013,120]
[341660149,1731069896173,500.0,0.00043014,30]
[341660150,1731069896235,500.0,0.00042364,30]
[341660151,1731069896289,500.0,0.0004308,120]
[341660152,1731069896519,500.0,0.000424,30]
[341660153,1731069896654,500.0,0.00043105,30]
[341660154,1731069896692,500.0,0.00042465,120]
[341660155,1731069896802,500.0,0.00043211,30]
[341660156,1731069896844,500.0,0.0004248,115]
[341660157,1731069896938,500.0,0.00043295,67]
[341660158,1731069896969,500.0,0.000425,120]
[341660159,1731069897084,500.0,0.00042598,31]
[341660160,1731069897266,500.0,0.000427,117]
[341660161,1731069897313,500.0,0.000437,120]
[341660162,1731069897567,500.0,0.00042787,30]
[341660163,1731069897774,500.0,0.00042798,120]
[341660164,1731069897854,500.0,0.000438,30]
[341660165,1731069897886,150.0,0.00042787,30]
[341660166,1731069898184,500.0,0.00046,120]
[341660167,1731069898262,500.0,0.00043835,120]
[341660168,1731069898897,500.0,0.00043836,30]
[341660169,1731069899327,500.0,0.000439,120]
[341660170,1731069899740,500.0,0.00044,120]
[341660171,1731069900617,500.0,0.00044058,30]
[341660172,1731069900899,500.0,0.0004427,30]
[341660173,1731069900968,500.0,0.00044058,30]
[341660174,1731069901264,500.0,0.00044383,120]